bitfinex-derivatives/quotes_BTCF0:USTF0_20240903
["timestamp","ask_amount","ask_price","bid_price","bid_amount"]
[1725387853293,0.572266,57840.0,57839.0,0.08772729]
[1725387853493,0.572266,57840.0,57839.0,0.13935738]
[1725387853894,0.572266,57840.0,57839.0,0.08772729]
[1725387854101,0.572266,57840.0,57839.0,0.00125929]
[1725387854493,0.658732,57840.0,57839.0,0.00125929]
[1725387854692,0.172948,57835.0,57834.0,0.05163009]
[1725387854997,0.172948,57835.0,57820.0,0.004]
[1725387854998,0.086489,57826.0,57824.0,0.06883457]
[1725387855200,0.086478,57832.0,57823.0,0.15532557]
[1725387855201,0.326489,57825.0,57823.0,0.15532557]
[1725387855391,0.24,57825.0,57823.0,0.15532557]
[1725387855591,0.24,57825.0,57824.0,0.08649]
[1725387855994,0.32649,57825.0,57822.0,0.06883457]
[1725387856191,0.086493,57822.0,57821.0,0.06883457]
[1725387856397,0.326493,57822.0,57821.0,0.06883457]
[1725387856688,0.326493,57822.0,57820.0,0.06883457]
[1725387856891,0.086495,57821.0,57820.0,0.06883457]
[1725387857099,0.076495,57821.0,57820.0,0.06883457]
[1725387857511,0.076495,57821.0,57819.0,0.00025929]
[1725387857893,0.080496,57820.0,57819.0,0.00025929]
[1725387859608,0.080496,57820.0,57819.0,0.00125929]
[1725387860303,0.081496,57820.0,57819.0,0.00125929]
[1725387860903,0.082496,57820.0,57819.0,0.00125929]
[1725387861498,0.082496,57820.0,57819.0,0.15667791]
[1725387862506,0.002,57820.0,57819.0,0.08775729]
[1725387862707,0.002,57820.0,57819.0,0.39227019]
[1725387862894,0.01354601,57825.0,57824.0,0.08649]
[1725387863099,0.086478,57833.0,57827.0,0.086485]
[1725387863100,0.086481,57831.0,57827.0,0.086485]
[1725387863302,0.326483,57829.0,57827.0,0.086485]
[1725387863495,0.436483,57829.0,57827.0,0.086485]
[1725387864216,0.11,57829.0,57828.0,0.086484]
[1725387864601,0.01384226,57830.0,57829.0,0.086483]
[1725387864895,0.01384226,57830.0,57829.0,0.181983]
[1725387866507,0.01784226,57830.0,57829.0,0.181983]
[1725387866811,0.02284226,57830.0,57829.0,0.181983]
[1725387867010,0.00925929,57830.0,57829.0,0.869266]
[1725387867213,0.00925929,57830.0,57829.0,0.782783]
[1725387870314,0.00925929,57830.0,57829.0,0.880083]
[1725387870505,0.00925929,57830.0,57829.0,0.70905557]
[1725387870710,0.14574029,57830.0,57829.0,0.086483]
[1725387871110,0.14614029,57830.0,57829.0,0.086483]
[1725387872707,0.38614029,57830.0,57829.0,0.086483]
[1725387872909,0.29965929,57830.0,57826.0,0.086486]
[1725387873108,0.086886,57827.0,57826.0,0.086486]
[1725387874009,0.0004,57827.0,57826.0,0.086486]
[1725387874711,0.1104,57827.0,57826.0,0.086486]
[1725387876014,0.198886,57827.0,57826.0,0.086486]
[1725387876213,0.199886,57827.0,57826.0,0.086486]
[1725387876417,0.21351872,57827.0,57826.0,0.086486]
[1725387877116,0.086491,57824.0,57823.0,0.086491]
[1725387877322,0.086891,57824.0,57823.0,0.086491]
[1725387879319,0.0124,57824.0,57823.0,0.086491]
[1725387880205,0.0264,57824.0,57823.0,0.086491]
[1725387880719,0.0264,57824.0,57823.0,0.172983]
[1725387881412,0.0264,57824.0,57823.0,0.24195557]
[1725387882413,0.0264,57824.0,57823.0,0.172983]
[1725387882612,0.0264,57824.0,57823.0,0.24202925]
[1725387883009,0.0264,57824.0,57823.0,0.172983]
[1725387885612,0.0264,57824.0,57823.0,0.086491]
[1725387885920,0.0264,57824.0,57823.0,0.172983]
[1725387886119,0.0264,57824.0,57823.0,0.259475]
[1725387886528,0.0264,57824.0,57823.0,0.27306579]
[1725387887318,0.0264,57824.0,57823.0,0.172983]
[1725387889014,0.079886,57827.0,57826.0,0.086487]
[1725387889216,0.079886,57827.0,57826.0,0.3955736]
[1725387890215,0.01382913,57829.0,57828.0,0.086484]
[1725387890417,0.08674229,57830.0,57829.0,0.086483]
[1725387891713,0.00025929,57830.0,57829.0,0.326483]
[1725387891917,0.00025929,57830.0,57829.0,1.531726]
[1725387892121,0.00025929,57830.0,57829.0,0.931726]
[1725387892325,0.00025929,57830.0,57829.0,0.412966]
[1725387892526,0.00025929,57830.0,57829.0,0.508166]
[1725387893116,0.00025929,57830.0,57829.0,0.421683]
[1725387894120,0.00325929,57830.0,57829.0,0.422683]
[1725387894321,0.01725929,57830.0,57829.0,0.422683]
[1725387898828,0.01725929,57830.0,57829.0,0.509166]
[1725387901721,0.01725929,57830.0,57829.0,0.595649]
[1725387901926,0.01725929,57830.0,57829.0,0.509166]
[1725387902129,0.01725929,57830.0,57829.0,0.595649]
[1725387902727,0.01725929,57830.0,57829.0,0.509166]
[1725387903232,0.01725929,57830.0,57829.0,0.595649]
[1725387903918,0.01725929,57830.0,57829.0,0.509166]
[1725387904114,0.01725929,57830.0,57829.0,0.595649]
[1725387904827,0.01725929,57830.0,57829.0,0.509166]
[1725387905028,0.01725929,57830.0,57829.0,0.595649]
[1725387905725,0.01725929,57830.0,57829.0,1.800892]
[1725387905924,0.01725929,57830.0,57829.0,1.714409]
[1725387906224,0.01725929,57830.0,57829.0,2.01879881]
[1725387906422,0.004,57840.0,57838.0,0.086469]
[1725387906624,0.180659,57845.0,57844.0,0.08646]
[1725387906825,0.29440521,57845.0,57844.0,0.08646]
[1725387907035,0.086466,57842.0,57841.0,0.086464]
[1725387907420,0.086866,57842.0,57841.0,0.086464]
[1725387907822,0.085866,57842.0,57841.0,0.086464]
[1725387908432,0.099866,57842.0,57841.0,0.087464]
[1725387909717,0.0144,57842.0,57841.0,0.087464]
[1725387910122,0.0284,57842.0,57841.0,0.088464]
[1725387910418,0.0284,57842.0,57841.0,0.174929]
[1725387912636,0.0284,57842.0,57841.0,0.053844]
[1725387915335,0.114863,57842.0,57841.0,0.053844]
[1725387915524,0.100863,57842.0,57841.0,0.052844]
[1725387915724,0.718966,57842.0,57841.0,0.001]
[1725387915925,1.455429,57842.0,57841.0,0.001]
[1725387916237,0.172942,57837.0,57836.0,0.00025929]
[1725387916424,0.172942,57837.0,57823.0,0.3419]
[1725387916425,0.08648,57831.0,57824.0,0.15955954]
[1725387916625,0.086889,57825.0,57824.0,0.08649]
[1725387916828,0.086489,57825.0,57824.0,0.08649]
[1725387917422,0.3608,57826.0,57821.0,0.06906954]
[1725387917627,0.0004,57822.0,57820.0,0.326495]
[1725387917827,0.0004,57821.0,57820.0,0.326495]
[1725387919735,0.0134,57821.0,57820.0,0.326495]
[1725387920548,0.0144,57821.0,57820.0,0.326495]
[1725387920730,0.0284,57821.0,57820.0,0.326495]
[1725387920931,0.0284,57821.0,57819.0,0.00025929]
[1725387921131,0.0004,57820.0,57819.0,0.00025929]
[1725387921334,0.086896,57820.0,57819.0,0.00025929]
[1725387921538,0.189796,57820.0,57819.0,0.00025929]
[1725387923031,0.203796,57820.0,57819.0,0.00025929]
[1725387923627,0.217796,57820.0,57819.0,0.00025929]
[1725387924937,0.203796,57820.0,57819.0,0.00025929]
[1725387925142,0.217796,57820.0,57819.0,0.00025929]
[1725387925644,0.114896,57820.0,57819.0,0.00025929]
[1725387926035,0.114896,57820.0,57819.0,0.00262647]
[1725387926732,0.12872251,57820.0,57819.0,0.00262647]
[1725387928244,0.02822651,57820.0,57819.0,0.24262647]
[1725387928434,0.04222651,57820.0,57819.0,0.41562247]
[1725387928636,0.0284,57820.0,57819.0,1.62096047]
[1725387928836,0.0004,57822.0,57821.0,0.259485]
[1725387929037,0.00025929,57830.0,57829.0,0.086483]
[1725387929236,0.00025929,57830.0,57829.0,0.876266]
[1725387930142,0.00025929,57830.0,57829.0,0.87863318]
[1725387930642,0.00025929,57830.0,57829.0,1.99739318]
[1725387930841,0.204,57848.0,57836.0,0.086472]
[1725387930842,0.01407089,57837.0,57836.0,0.086472]
[1725387931044,0.1042,57848.0,57836.0,0.6008]
[1725387931346,0.086458,57846.0,57845.0,0.086458]
[1725387932240,0.086458,57846.0,57845.0,0.08882518]
[1725387932849,0.11785675,57848.0,57845.0,0.08982518]
[1725387933249,0.086456,57847.0,57846.0,0.00236718]
[1725387933437,0.687256,57847.0,57846.0,0.00236718]
[1725387934154,0.447256,57847.0,57846.0,0.00236718]
[1725387934849,0.086456,57847.0,57846.0,0.00336718]
[1725387935443,0.097456,57847.0,57846.0,0.00436718]
[1725387935640,0.011,57847.0,57846.0,0.00436718]
[1725387935846,0.011,57847.0,57846.0,0.33082518]
[1725387936051,0.011,57847.0,57846.0,1.53588318]
[1725387936346,0.00025929,57851.0,57850.0,0.172904]
[1725387936647,0.004,57867.0,57850.0,0.172904]
[1725387936648,0.004,57863.0,57850.0,1.11936]
[1725387936849,0.01355411,57866.0,57862.0,0.6008]
[1725387937061,0.08642,57872.0,57865.0,0.24]
[1725387937363,0.10268579,57877.0,57871.0,0.24]
[1725387937648,0.00025929,57880.0,57879.0,0.086408]
[1725387938355,0.00025929,57880.0,57879.0,0.08877518]
[1725387939247,0.00025929,57880.0,57879.0,0.08977518]
[1725387939847,0.00925929,57880.0,57879.0,0.09077518]
[1725387944654,0.00925929,57880.0,57879.0,0.17718318]
[1725387945354,0.00925929,57880.0,57879.0,0.54718318]
[1725387946756,0.00825929,57880.0,57879.0,1.66550318]
[1725387947153,0.004,57887.0,57886.0,0.172796]
[1725387947357,0.69205105,57901.0,57893.0,0.086387]
[1725387947358,0.01371421,57894.0,57893.0,0.086387]
[1725387947649,0.08638,57898.0,57897.0,0.086381]
[1725387947857,0.11638,57898.0,57897.0,0.086381]
[1725387948561,0.11638,57898.0,57897.0,0.08874818]
[1725387949364,0.11638,57898.0,57897.0,0.08974818]
[1725387949949,0.11638,57898.0,57897.0,0.00336718]
[1725387950766,0.11638,57898.0,57897.0,0.00436718]
[1725387952257,0.35638,57898.0,57897.0,0.00436718]
[1725387953665,0.96092,57898.0,57897.0,0.00436718]
[1725387954957,0.87454,57898.0,57897.0,0.00436718]
[1725387955162,0.35638,57898.0,57897.0,0.00436718]
[1725387955354,0.87454,57898.0,57897.0,0.00436718]
[1725387955551,0.96092,57898.0,57897.0,0.00436718]
[1725387955958,0.44276,57898.0,57897.0,0.00436718]
[1725387956675,0.11638,57898.0,57897.0,0.00436718]
[1725387957870,0.44276,57898.0,57897.0,0.00436718]
[1725387958066,0.35638,57898.0,57897.0,0.00436718]
[1725387960375,0.11638,57898.0,57897.0,0.00436718]
[1725387961073,0.11638,57898.0,57897.0,0.09074818]
[1725387961370,0.03,57898.0,57897.0,0.09074818]
[1725387961567,0.11638,57898.0,57897.0,0.09074818]
[1725387962561,0.03,57898.0,57897.0,0.09074818]
[1725387962762,0.03,57898.0,57897.0,0.18664818]
[1725387962970,0.03,57898.0,57897.0,0.36992918]
[1725387963161,0.01369218,57901.0,57900.0,0.172754]
[1725387963361,0.00025858,57903.0,57902.0,0.086374]
[1725387963567,0.00025858,57903.0,57902.0,0.44954118]
[1725387964971,0.01434927,57903.0,57902.0,0.45154118]
[1725387965171,0.086363,57910.0,57902.0,0.43423672]
[1725387965476,0.086363,57910.0,57909.0,0.086363]
[1725387966576,0.086363,57910.0,57909.0,0.08873018]
[1725387967071,0.10008488,57910.0,57909.0,0.08873018]
[1725387967573,0.14008488,57910.0,57909.0,0.08973018]
[1725387967965,0.14008488,57910.0,57909.0,0.00336718]
[1725387968260,0.14008488,57910.0,57909.0,0.00436718]
[1725387970573,0.65812488,57910.0,57909.0,0.00436718]
[1725387970761,1.58448788,57910.0,57909.0,0.00436718]
[1725387970965,1.76845088,57910.0,57904.0,0.00025905]
[1725387971174,0.773938,57905.0,57904.0,0.00025905]
[1725387971366,0.873938,57905.0,57904.0,0.00025905]
[1725387971563,0.772938,57905.0,57904.0,0.00025905]
[1725387971762,0.782938,57905.0,57904.0,0.00025905]
[1725387972172,0.542938,57905.0,57904.0,0.00025905]
[1725387972572,1.901018,57905.0,57904.0,0.00025905]
[1725387973077,2.02871266,57905.0,57904.0,0.00025905]
[1725387973473,2.02071266,57905.0,57904.0,0.00125905]
[1725387973673,2.09071266,57905.0,57904.0,0.00225905]
[1725387974174,2.02071266,57905.0,57904.0,0.00225905]
[1725387974377,0.66063266,57905.0,57904.0,0.00125905]
[1725387974574,0.66363266,57905.0,57904.0,0.00225905]
[1725387974882,0.57726366,57905.0,57904.0,0.24225905]
[1725387975378,0.73187715,57905.0,57904.0,0.00225905]
[1725387976581,0.73087715,57905.0,57904.0,0.08863005]
[1725387976770,0.57626366,57905.0,57904.0,0.08863005]
[1725387977079,0.57726366,57905.0,57904.0,0.08863005]
[1725387977280,0.5222402,57905.0,57904.0,0.08763005]
[1725387977478,0.49388925,57905.0,57904.0,0.32863005]
[1725387977672,0.08006802,57905.0,57904.0,0.32863005]
[1725387977978,0.08006802,57905.0,57904.0,0.41400105]
[1725387978187,0.08106802,57905.0,57904.0,0.41500105]
[1725387978484,0.03876718,57905.0,57904.0,0.93308105]
[1725387979482,0.15906527,57905.0,57904.0,0.93308105]
[1725387979982,0.03676718,57905.0,57904.0,0.93308105]
[1725387980298,0.0024,57905.0,57904.0,0.54561651]
[1725387980587,0.0034,57905.0,57904.0,0.54661651]
[1725387981576,0.0014,57905.0,57904.0,0.54561651]
[1725387981775,0.0034,57905.0,57904.0,0.54661651]
[1725387982172,0.0034,57905.0,57904.0,0.91661725]
[1725387984092,0.0034,57905.0,57904.0,0.46024625]
[1725387984574,0.0034,57905.0,57904.0,0.32763005]
[1725387984773,0.0034,57905.0,57904.0,0.32863005]
[1725387985478,0.0034,57905.0,57904.0,0.39755707]
[1725387985680,0.0034,57905.0,57904.0,0.00225905]
[1725387985681,0.089769,57905.0,57904.0,0.00225905]
[1725387985886,0.089769,57905.0,57904.0,0.08863005]
[1725387986086,0.089769,57905.0,57904.0,0.32863005]
[1725387986476,0.089769,57905.0,57904.0,0.00225905]
[1725387987488,0.089769,57905.0,57904.0,0.05397698]
[1725387987990,0.087769,57905.0,57904.0,0.00125905]
[1725387988190,0.089769,57905.0,57904.0,0.00225905]
[1725387988484,0.1654357,57905.0,57904.0,0.00225905]
[1725387988683,0.29497882,57905.0,57904.0,0.00225905]
[1725387988885,0.1654357,57905.0,57904.0,0.00125905]
[1725387989079,0.1654357,57905.0,57904.0,0.00225905]
[1725387989382,0.2154357,57905.0,57904.0,0.00225905]
[1725387989604,1.8670537,57905.0,57904.0,0.00225905]
[1725387989780,1.92007573,57905.0,57904.0,0.002]
[1725387989978,1.92007573,57905.0,57904.0,0.001]
[1725387989979,1.91907573,57905.0,57904.0,0.001]
[1725387990288,1.87007573,57905.0,57904.0,0.002]
[1725387990582,1.9482445,57905.0,57904.0,0.002]
[1725387991086,0.172754,57900.0,57899.0,0.00025905]
[1725387991293,0.86627139,57900.0,57899.0,0.00025905]
[1725387991589,0.62527139,57900.0,57899.0,0.00025905]
[1725387991775,0.57527139,57900.0,57899.0,0.24025905]
[1725387991979,0.6372322,57900.0,57899.0,0.24025905]
[1725387992176,0.76455553,57900.0,57899.0,0.24025905]
[1725387992381,0.76355553,57900.0,57899.0,0.24025905]
[1725387992584,0.8255158,57900.0,57899.0,0.24025905]
[1725387992784,0.63623166,57900.0,57899.0,0.24025905]
[1725387992982,0.64123166,57900.0,57899.0,0.24225905]
[1725387993386,0.82960755,57900.0,57899.0,0.24125905]
[1725387993594,0.83060755,57900.0,57899.0,0.24125905]
[1725387993887,0.83160755,57900.0,57899.0,0.24225905]
[1725387994385,0.74223055,57900.0,57899.0,0.32763705]
[1725387994577,0.68527028,57900.0,57899.0,0.32863705]
[1725387994781,0.6990079,57900.0,57899.0,0.32863705]
[1725387994981,0.50963201,57900.0,57899.0,0.32863705]
[1725387995187,0.37993762,57900.0,57899.0,0.32763705]
[1725387995490,0.38293762,57900.0,57899.0,0.32863705]
[1725387995985,0.38293762,57900.0,57899.0,0.68843705]
[1725387995986,0.01713762,57900.0,57899.0,0.68843705]
[1725387996202,0.02113762,57900.0,57899.0,0.68943705]
[1725387996397,0.01813762,57900.0,57899.0,0.68843705]
[1725387996585,0.02113762,57900.0,57899.0,0.68943705]
[1725387996782,0.02213762,57900.0,57899.0,0.68943705]
[1725387997589,0.02213762,57900.0,57899.0,0.74115498]
[1725387997888,0.02213762,57900.0,57899.0,0.82753298]
[1725387998088,0.0084,57900.0,57899.0,1.89393505]
[1725387998484,0.0054,57900.0,57899.0,1.89293505]
[1725387998783,0.0054,57900.0,57899.0,1.89393505]
[1725387998784,0.0084,57900.0,57899.0,1.89393505]
[1725387999887,0.0034,57900.0,57899.0,1.89293505]
[1725388000200,0.0084,57900.0,57899.0,1.89293505]
[1725388000494,0.0084,57900.0,57899.0,2.04824007]
[1725388000693,0.0084,57900.0,57899.0,1.97931305]
[1725388000999,0.0084,57900.0,57899.0,1.98031305]
[1725388001182,0.0084,57900.0,57899.0,2.35031305]
[1725388001992,0.0084,57900.0,57899.0,2.34931305]
[1725388002186,0.00025829,57910.0,57909.0,0.172726]
[1725388002385,0.01385428,57910.0,57909.0,0.773526]
[1725388002586,0.00025829,57910.0,57909.0,0.773526]
[1725388002790,0.00025829,57910.0,57909.0,0.412726]
[1725388003500,0.00025829,57910.0,57909.0,0.413726]
[1725388003501,0.00325829,57910.0,57909.0,0.413726]
[1725388004087,0.00725829,57910.0,57909.0,0.414726]
[1725388004285,0.00725829,57910.0,57909.0,0.775526]
[1725388004896,0.00425829,57910.0,57909.0,0.775526]
[1725388005890,0.00025829,57910.0,57909.0,0.775526]
[1725388006604,0.07826577,57920.0,57909.0,0.775526]
[1725388006790,1.52668351,57947.0,57909.0,0.775526]
[1725388006791,0.15496287,57957.0,57955.0,1.53793423]
[1725388006995,0.15496287,57957.0,57948.0,0.3608]
[1725388006996,0.09,57957.0,57956.0,0.6008]
[1725388007295,0.24,57971.0,57956.0,0.6108]
[1725388007497,0.3324,57975.0,57970.0,0.3608]
[1725388007699,0.24,57971.0,57970.0,0.3608]
[1725388007886,0.24,57971.0,57956.0,0.3708]
[1725388008085,0.24,57971.0,57956.0,0.35105882]
[1725388008086,0.23,57960.0,57956.0,0.35105882]
[1725388008291,0.24,57957.0,57956.0,0.35105882]
[1725388008692,1.35764,57957.0,57948.0,0.3608]
[1725388008892,0.24,57949.0,57948.0,0.3608]
[1725388009802,0.24,57949.0,57948.0,0.3618]
[1725388010305,0.24,57949.0,57948.0,0.3608]
[1725388010487,0.24,57949.0,57948.0,0.3628]
[1725388011501,0.25362023,57949.0,57948.0,0.3628]
[1725388013001,0.25362023,57949.0,57948.0,0.3618]
[1725388013390,0.25362023,57949.0,57948.0,0.3628]
[1725388015103,0.25362023,57949.0,57948.0,0.449105]
[1725388015908,0.01362023,57949.0,57948.0,0.689105]
[1725388016211,0.00025805,57954.0,57953.0,0.086298]
[1725388016390,0.00025805,57954.0,57953.0,0.447098]
[1725388017001,0.12025805,57954.0,57953.0,0.447098]
[1725388017402,0.12025805,57954.0,57953.0,0.448098]
[1725388017605,0.13400711,57954.0,57953.0,0.449098]
[1725388017807,0.01400711,57954.0,57953.0,0.535396]
[1725388017992,0.00025805,57954.0,57953.0,0.535396]
[1725388018197,0.05212662,57959.0,57958.0,0.17258]
[1725388018405,0.4307,57971.0,57965.0,0.08628]
[1725388018406,0.00877713,57966.0,57965.0,0.08628]
[1725388018596,0.12,57966.0,57965.0,0.68708]
[1725388018798,0.11110093,57971.0,57970.0,0.086273]
[1725388019009,0.19110093,57971.0,57970.0,0.687073]
[1725388019899,0.00104001,57977.0,57976.0,0.086264]
[1725388020101,0.09,57977.0,57976.0,0.447064]
[1725388020503,0.10356764,57977.0,57976.0,0.086264]
[1725388021508,0.20406764,57977.0,57976.0,0.086264]
[1725388022608,1.32150764,57977.0,57970.0,0.3628]
[1725388022806,0.3,57971.0,57970.0,0.001]
[1725388023310,0.11406764,57977.0,57970.0,0.301]
[1725388023511,0.24406764,57977.0,57976.0,0.001]
[1725388024707,1.36150764,57977.0,57976.0,0.001]
[1725388024902,1.44776964,57977.0,57976.0,0.001]
[1725388025105,1.44776964,57977.0,57970.0,0.001]
[1725388025106,0.086266,57975.0,57970.0,0.001]
[1725388025301,0.3,57971.0,57970.0,0.002]
[1725388025713,1.52752,57971.0,57970.0,0.001]
[1725388026112,1.52752,57971.0,57965.0,0.00025882]
[1725388026406,1.11756,57966.0,57965.0,0.00025882]
[1725388026611,0.66168,57969.0,57965.0,0.00025882]
[1725388026814,0.6608,57969.0,57965.0,0.00025882]
[1725388027002,0.3608,57969.0,57965.0,0.00025882]
[1725388027310,0.1024,57970.0,57969.0,0.086274]
[1725388027511,0.2224,57970.0,57969.0,0.086274]
[1725388027907,0.12,57970.0,57969.0,0.086274]
[1725388030108,0.123,57970.0,57969.0,0.087274]
[1725388030309,0.126,57970.0,57969.0,0.088274]
[1725388031909,0.127,57970.0,57969.0,0.088274]
[1725388033305,0.427,57970.0,57969.0,0.002]
[1725388033811,2.011593,57970.0,57969.0,0.002]
[1725388034002,2.094866,57970.0,57969.0,0.001]
[1725388034206,0.086279,57966.0,57965.0,0.00025882]
[1725388034410,1.486279,57966.0,57965.0,0.00025882]
[1725388034609,2.603839,57966.0,57965.0,0.00025882]
[1725388035016,2.602839,57966.0,57965.0,0.00025882]
[1725388035218,2.601839,57966.0,57965.0,0.00025882]
[1725388036012,2.605839,57966.0,57965.0,0.00125882]
[1725388036616,2.609839,57966.0,57965.0,0.00225882]
[1725388037311,2.71806629,57966.0,57965.0,0.00225882]
[1725388037612,0.13922729,57966.0,57965.0,0.00225882]
[1725388037813,0.13922729,57966.0,57965.0,0.08853882]
[1725388038116,0.13922729,57966.0,57965.0,0.00225882]
[1725388038713,0.14022729,57966.0,57965.0,0.00225882]
[1725388039823,0.13622729,57966.0,57965.0,0.00125882]
[1725388040012,0.14022729,57966.0,57965.0,0.08853882]
[1725388040218,0.06856297,57966.0,57965.0,0.22003254]
[1725388042108,0.06856297,57966.0,57965.0,0.32346117]
[1725388042308,0.009,57966.0,57965.0,0.22003254]
[1725388043007,0.009,57966.0,57965.0,0.38007351]
[1725388043213,0.005,57966.0,57965.0,0.37907351]
[1725388043408,0.009,57966.0,57965.0,0.38007351]
[1725388043611,0.09722955,57973.0,57965.0,0.29379351]
[1725388043812,0.12096155,57973.0,57972.0,0.08627]
[1725388044119,0.12096155,57973.0,57972.0,0.21775371]
[1725388044622,0.20722955,57973.0,57972.0,0.21775371]
[1725388045020,0.12096155,57973.0,57972.0,0.21775371]
[1725388045618,1.71097755,57973.0,57972.0,0.13148371]
[1725388045923,1.71197755,57973.0,57972.0,0.13248371]
[1725388046118,1.65197755,57973.0,57972.0,0.13248371]
[1725388046315,1.65197755,57973.0,57972.0,0.13348371]
[1725388046316,2.63197755,57973.0,57972.0,0.13348371]
[1725388046519,2.71824555,57973.0,57972.0,0.13348371]
[1725388046727,2.71824555,57973.0,57972.0,0.08807112]
[1725388047029,2.71824555,57973.0,57972.0,0.002]
[1725388048325,2.11824555,57973.0,57972.0,0.002]
[1725388048719,0.53449755,57973.0,57972.0,0.002]
[1725388049928,1.65197755,57973.0,57972.0,0.002]
[1725388050823,1.73824555,57973.0,57972.0,0.002]
[1725388054123,1.65197755,57973.0,57972.0,0.002]
[1725388054522,1.73824555,57973.0,57972.0,0.002]
[1725388054830,1.05197755,57973.0,57972.0,0.002]
[1725388055418,1.05197755,57973.0,57972.0,0.07088437]
[1725388055732,1.05197755,57973.0,57972.0,0.002]
[1725388055932,0.53449755,57973.0,57972.0,0.002]
[1725388056130,0.44822955,57973.0,57972.0,0.002]
[1725388056329,0.44822955,57973.0,57972.0,0.001]
[1725388056522,0.44822955,57973.0,57972.0,0.002]
[1725388057332,0.53449755,57973.0,57972.0,0.002]
[1725388057736,1.65197755,57973.0,57972.0,0.05367682]
[1725388058239,1.65197755,57973.0,57972.0,0.002]
[1725388058831,1.05197755,57973.0,57972.0,0.002]
[1725388059025,1.65197755,57973.0,57972.0,0.002]
[1725388059222,1.65197755,57973.0,57972.0,0.001]
[1725388059420,1.73824555,57973.0,57972.0,0.002]
[1725388059624,0.086273,57970.0,57967.0,0.05167682]
[1725388059830,0.172558,57966.0,57965.0,0.00025882]
[1725388060027,0.301958,57966.0,57965.0,0.00025882]
[1725388060227,0.301558,57966.0,57965.0,0.00025882]
[1725388060622,0.300558,57966.0,57965.0,0.00025882]
[1725388061932,0.213279,57966.0,57965.0,0.00025882]
[1725388062244,0.215279,57966.0,57965.0,0.00125882]
[1725388063633,0.216279,57966.0,57965.0,0.00125882]
[1725388064431,0.216279,57966.0,57965.0,0.00225882]
[1725388064636,0.230546,57966.0,57965.0,0.00225882]
[1725388065130,0.316825,57966.0,57965.0,0.00225882]
[1725388065334,1.520664,57966.0,57965.0,0.00225882]
[1725388065528,1.520664,57966.0,57956.0,0.3608]
[1725388065529,0.086292,57957.0,57956.0,0.3608]
[1725388065728,0.3604,57957.0,57950.0,0.0963]
[1725388065924,0.086701,57951.0,57950.0,0.0963]
[1725388066131,0.326301,57951.0,57950.0,0.0963]
[1725388066638,0.385301,57951.0,57950.0,0.0963]
[1725388067038,0.389301,57951.0,57950.0,0.0973]
[1725388067333,0.389301,57951.0,57950.0,0.001]
[1725388067838,0.84505,57951.0,57950.0,0.001]
[1725388068134,0.003,57951.0,57950.0,0.087302]
[1725388068345,0.003,57951.0,57950.0,0.001]
[1725388068827,0.01419686,57951.0,57950.0,0.001]
[1725388069024,0.01419686,57951.0,57950.0,0.002]
[1725388069025,0.008,57951.0,57950.0,0.002]
[1725388069429,0.008,57951.0,57950.0,0.088302]
[1725388070838,0.01897464,57951.0,57950.0,0.088302]
[1725388071132,0.008,57951.0,57950.0,0.088302]
[1725388072134,0.088,57951.0,57948.0,0.05165565]
[1725388072435,0.0004,57949.0,57948.0,0.13795262]
[1725388072640,0.0004,57949.0,57948.0,0.086305]
[1725388073837,0.2444,57949.0,57946.0,0.16418437]
[1725388074143,0.0004,57947.0,57946.0,0.181608]
[1725388075238,0.0004,57947.0,57945.0,0.42994319]
[1725388075440,0.0004,57946.0,57945.0,0.42994319]
[1725388076441,0.0014,57946.0,57945.0,0.42994319]
[1725388076643,0.0014,57946.0,57945.0,0.36105882]
[1725388076644,0.0024,57946.0,57945.0,0.36105882]
[1725388079252,0.0024,57946.0,57945.0,0.44736882]
[1725388079542,0.0024,57946.0,57945.0,0.68736882]
[1725388081641,0.0024,57946.0,57945.0,0.44736882]
[1725388083755,0.24,57960.0,57955.0,0.086295]
[1725388083954,0.094,57963.0,57955.0,0.687095]
[1725388083955,0.00088,57963.0,57955.0,0.687095]
[1725388084142,0.01123997,57959.0,57955.0,1.047895]
[1725388084645,0.01123997,57959.0,57955.0,1.13419]
[1725388085050,0.00725882,57956.0,57955.0,1.13519]
[1725388085240,0.01225882,57956.0,57955.0,1.13619]
[1725388085443,0.00859716,57969.0,57955.0,2.29902606]
[1725388085649,0.086279,57966.0,57965.0,0.086279]
[1725388085954,0.086279,57966.0,57965.0,0.447079]
[1725388086451,0.09487116,57969.0,57968.0,0.086276]
[1725388086645,0.09987116,57969.0,57968.0,0.13789289]
[1725388086845,0.10687116,57969.0,57968.0,0.13789289]
[1725388087450,0.10687116,57969.0,57968.0,0.086276]
[1725388087651,0.086276,57968.0,57967.0,0.05161689]
[1725388087838,0.086676,57968.0,57967.0,0.086277]
[1725388088451,0.0004,57968.0,57967.0,0.086277]
[1725388088844,0.0004,57968.0,57967.0,0.087277]
[1725388089751,0.0004,57968.0,57967.0,0.088277]
[1725388094255,0.1304,57968.0,57967.0,0.088277]
[1725388096156,0.1314,57968.0,57967.0,0.088277]
[1725388096352,0.1314,57968.0,57967.0,0.087277]
[1725388096551,0.1314,57968.0,57967.0,0.088277]
[1725388097564,0.217676,57968.0,57967.0,0.088277]
[1725388097948,0.216676,57968.0,57967.0,0.087277]
[1725388098155,0.217676,57968.0,57967.0,0.088277]
[1725388098455,0.217676,57968.0,57967.0,0.087277]
[1725388098656,0.217676,57968.0,57967.0,0.088277]
[1725388099062,0.217676,57968.0,57967.0,0.087277]
[1725388099360,0.217676,57968.0,57967.0,0.088277]
[1725388099856,0.217676,57968.0,57967.0,0.449077]
[1725388100056,0.217676,57968.0,57967.0,0.3628]
[1725388100057,0.303952,57968.0,57967.0,0.3628]
[1725388100560,0.172572,57961.0,57960.0,0.00025882]
[1725388100752,0.172572,57961.0,57951.0,0.31475882]
[1725388100753,0.086299,57952.0,57951.0,0.31475882]
[1725388100957,0.086304,57949.0,57945.0,0.3608]
[1725388101156,0.0004,57946.0,57945.0,0.447109]
[1725388101359,0.24856541,57952.0,57946.0,0.086308]
[1725388101360,0.09426441,57952.0,57946.0,0.086308]